fUST/lending_fUST_20260523
["ID","MTS","AMOUNT","RATE_DAILY","PERIOD"]
[422837480,1779502247000,-500.0,8.219e-05,2]
[422837495,1779502247000,-500.0,8.219e-05,2]
[422837476,1779502247000,-500.0,8.219e-05,2]
[422837483,1779502247000,-500.0,8.219e-05,2]
[422837485,1779502247000,-500.0,8.219e-05,2]
[422837482,1779502247000,-500.0,8.219e-05,2]
[422837488,1779502247000,-500.0,8.219e-05,2]
[422837486,1779502247000,-500.0,8.219e-05,2]
[422837491,1779502247000,-749.36,8.219e-05,2]
[422837502,1779502247000,-875.86,8.219e-05,2]
[422837497,1779502247000,-500.0,8.219e-05,2]
[422837498,1779502247000,-585.61333967,8.219e-05,2]
[422837505,1779502247000,-500.0,8.219e-05,2]
[422837503,1779502247000,-500.0,8.219e-05,2]
[422837490,1779502247000,-500.0,8.219e-05,2]
[422837492,1779502247000,-500.0,8.219e-05,2]
[422837484,1779502247000,-500.0,8.219e-05,2]
[422837525,1779502248000,-500.0,8.219e-05,2]
[422837526,1779502248000,-518.75,8.219e-05,2]
[422837527,1779502248000,-500.0,8.219e-05,2]
[422837528,1779502248000,-387.05069088,8.219e-05,2]
[422837524,1779502248000,-500.0,8.219e-05,2]
[422837550,1779503003000,152.0,6.84e-05,30]
[422837637,1779503431000,-196.2718245,7.654e-05,2]
[422837639,1779503431000,-413.78077523,7.822e-05,2]
[422837641,1779503431000,-300.0,7.917e-05,2]
[422837638,1779503431000,-500.0,7.808e-05,2]
[422837642,1779503431000,-181.10250795,7.918e-05,2]
[422837644,1779503431000,-500.0,7.918e-05,2]
[422837640,1779503431000,-160.0,7.902e-05,5]
[422837643,1779503431000,-639.1632562,7.918e-05,2]
[422837659,1779503432000,-1521.96476155,7.919e-05,2]
[422837657,1779503432000,-300.0,7.918e-05,2]
[422837655,1779503432000,-500.0,7.918e-05,2]
[422837653,1779503432000,-500.0,7.918e-05,2]
[422837647,1779503432000,-500.0,7.918e-05,2]
[422837646,1779503432000,-500.0,7.918e-05,2]
[422837651,1779503432000,-290.80596452,7.918e-05,2]
[422837645,1779503432000,-500.0,7.918e-05,2]
[422837650,1779503432000,-500.0,7.918e-05,2]
[422837648,1779503432000,-500.0,7.918e-05,2]
[422837734,1779503440000,-4619.0294085,7.919e-05,2]
[422837731,1779503440000,-11444.22714275,7.919e-05,2]
[422837729,1779503440000,-379.66738816,7.919e-05,2]
[422838120,1779503443000,-289.21213238,7.919e-05,2]
[422838193,1779503446000,-160.0,8.008e-05,2]
[422838192,1779503446000,-766.63845589,8.008e-05,2]
[422838195,1779503446000,-161.73153808,8.008e-05,2]
[422838194,1779503446000,-160.0,8.008e-05,2]
[422838196,1779503446000,-164.02525372,8.009e-05,2]
[422838197,1779503446000,-358.20825381,8.051e-05,2]
[422838198,1779503446000,-13.61962085,8.065e-05,2]
[422838199,1779503446000,-137.38037915,8.065e-05,2]
[422838200,1779503446000,-325.9848009,8.065e-05,2]
[422838201,1779503446000,-456.659681,8.065e-05,2]
[422838204,1779503446000,-447.108,8.089e-05,2]
[422838203,1779503446000,-325.9848009,8.065e-05,2]
[422838202,1779503446000,-325.9970619,8.065e-05,2]
[422838205,1779503446000,-187.0,8.089e-05,2]
[422838206,1779503446000,-188.858,8.213e-05,2]
[422838217,1779503446000,-500.0,8.219e-05,2]
[422838207,1779503446000,-500.0,8.219e-05,2]
[422838220,1779503446000,-500.0,8.219e-05,2]
[422838209,1779503446000,-554.23,8.219e-05,2]
[422838230,1779503446000,-1205.94,8.219e-05,2]
[422838229,1779503446000,-541.3030681,8.219e-05,2]
[422838227,1779503446000,-500.0,8.219e-05,2]
[422838226,1779503446000,-500.0,8.219e-05,2]
[422838224,1779503446000,-500.0,8.219e-05,2]
[422838221,1779503446000,-535.89,8.219e-05,2]
[422838225,1779503446000,-500.0,8.219e-05,2]
[422838222,1779503446000,-500.0,8.219e-05,2]
[422838215,1779503446000,-500.0,8.219e-05,2]
[422838211,1779503446000,-500.0,8.219e-05,2]
[422838213,1779503446000,-584.95,8.219e-05,2]
[422838219,1779503446000,-299.66543937,8.219e-05,2]
[422838218,1779503446000,-500.0,8.219e-05,2]
[422838228,1779503446000,-500.0,8.219e-05,2]
[422838223,1779503446000,-500.0,8.219e-05,2]
[422838248,1779503447000,-825.42,8.219e-05,2]
[422838249,1779503447000,-535.91,8.219e-05,2]
[422838244,1779503447000,-500.0,8.219e-05,2]
[422838243,1779503447000,-500.0,8.219e-05,2]
[422838239,1779503447000,-500.0,8.219e-05,2]
[422838246,1779503447000,-500.0,8.219e-05,2]
[422838242,1779503447000,-683.43,8.219e-05,2]
[422838247,1779503447000,-500.0,8.219e-05,2]
[422838240,1779503447000,-975.37,8.219e-05,2]
[422838235,1779503447000,-797.72,8.219e-05,2]
[422838238,1779503447000,-500.0,8.219e-05,2]
[422838234,1779503447000,-500.0,8.219e-05,2]
[422838232,1779503447000,-500.0,8.219e-05,2]
[422838233,1779503447000,-500.0,8.219e-05,2]
[422838231,1779503447000,-584.52091971,8.219e-05,2]
[422838236,1779503447000,-454.41900695,8.219e-05,2]
[422838250,1779503447000,-506.2617652,8.219e-05,2]
[422838237,1779503447000,-500.0,8.219e-05,2]
[422838241,1779503447000,-500.0,8.219e-05,2]
[422838252,1779503447000,-500.0,8.219e-05,2]
[422838245,1779503447000,-500.0,8.219e-05,2]
[422838263,1779503447000,-637.40310412,8.219e-05,2]
[422838262,1779503447000,-500.0,8.219e-05,2]
[422838272,1779503447000,-500.0,8.219e-05,2]
[422838273,1779503447000,-1815.75325443,8.219e-05,2]
[422838268,1779503447000,-1570.98,8.219e-05,2]
[422838266,1779503447000,-594.78,8.219e-05,2]
[422838269,1779503447000,-500.0,8.219e-05,2]
[422838267,1779503447000,-500.0,8.219e-05,2]
[422838265,1779503447000,-2152.04,8.219e-05,2]
[422838264,1779503447000,-500.0,8.219e-05,2]
[422838260,1779503447000,-898.81,8.219e-05,2]
[422838270,1779503447000,-500.0,8.219e-05,2]
[422838271,1779503447000,-500.0,8.219e-05,2]
[422838255,1779503447000,-614.03,8.219e-05,2]
[422838261,1779503447000,-500.0,8.219e-05,2]
[422838251,1779503447000,-500.0,8.219e-05,2]
[422838256,1779503447000,-500.0,8.219e-05,2]
[422838257,1779503447000,-1074.73,8.219e-05,2]
[422838258,1779503447000,-1166.5,8.219e-05,2]
[422838254,1779503447000,-439.50056679,8.219e-05,2]
[422838253,1779503447000,-500.0,8.219e-05,2]
[422838259,1779503447000,-500.0,8.219e-05,2]
[422838277,1779503588000,-300.0,7.818e-05,2]
[422838278,1779503594000,-3743.106,7.819e-05,2]
[422838280,1779503610000,60.0,7.818e-05,2]
[422838279,1779503610000,160.0,7.818e-05,2]
[422838329,1779504438000,-229.27019702,7.691e-05,2]
[422838342,1779504557000,-270.25261542,7.243e-05,2]
[422838363,1779504632000,-400.91975579,7.467e-05,2]
[422838364,1779504632000,-258.0,7.717e-05,2]
[422838362,1779504632000,-55.73218548,7.243e-05,2]
[422838365,1779504632000,-500.0,7.718e-05,2]
[422838368,1779504632000,-500.0,7.718e-05,2]
[422838367,1779504632000,-500.0,7.718e-05,2]
[422838369,1779504632000,-500.0,7.718e-05,2]
[422838370,1779504632000,-500.0,7.718e-05,2]
[422838371,1779504632000,-147.38253424,7.718e-05,2]
[422838366,1779504632000,-413.56417517,7.718e-05,2]
[422838427,1779504638000,-500.0,8.051e-05,2]
[422838437,1779504638000,-243139.60013591,8.119e-05,2]
[422838417,1779504638000,-160.0,7.812e-05,2]
[422838421,1779504638000,-500.0,8.051e-05,2]
[422838418,1779504638000,-500.0,8e-05,2]
[422838422,1779504638000,-500.0,8.051e-05,2]
[422838426,1779504638000,-500.0,8.051e-05,2]
[422838423,1779504638000,-500.0,8.051e-05,2]
[422838425,1779504638000,-500.0,8.051e-05,2]
[422838424,1779504638000,-500.0,8.051e-05,2]
[422838415,1779504638000,-161.73153808,7.811e-05,2]
[422838414,1779504638000,-233.07240807,7.808e-05,2]
[422838413,1779504638000,-697.10732831,7.808e-05,2]
[422838416,1779504638000,-766.63845589,7.812e-05,2]
[422838412,1779504638000,-607942.38684297,7.719e-05,2]
[422838411,1779504638000,-160.0,7.718e-05,2]
[422838410,1779504638000,-500.0,7.718e-05,2]
[422838409,1779504638000,-352.61746576,7.718e-05,2]
[422838419,1779504638000,-342.12084974,8e-05,2]
[422838438,1779504638000,-33799.9545724,8.163e-05,2]
[422838435,1779504638000,-1415.344,8.089e-05,2]
[422838428,1779504638000,-500.0,8.051e-05,2]
[422838439,1779504638000,-151.0,8.163e-05,2]
[422838444,1779504638000,-151.0,8.163e-05,2]
[422838446,1779504638000,-151.0,8.163e-05,2]
[422838443,1779504638000,-151.0,8.163e-05,2]
[422838447,1779504638000,-151.0,8.163e-05,2]
[422838442,1779504638000,-153.413529,8.163e-05,2]
[422838450,1779504638000,-222.106,8.214e-05,2]
[422838445,1779504638000,-151.0,8.163e-05,2]
[422838449,1779504638000,-7514.0287082,8.207e-05,2]
[422838451,1779504638000,-1464.70072105,8.219e-05,2]
[422838448,1779504638000,-287.45301928,8.203e-05,7]
[422838440,1779504638000,-151.0,8.163e-05,2]
[422838436,1779504638000,-218.897,8.089e-05,2]
[422838431,1779504638000,-500.0,8.051e-05,2]
[422838432,1779504638000,-500.0,8.051e-05,2]
[422838430,1779504638000,-500.0,8.051e-05,2]
[422838433,1779504638000,-812.00627431,8.051e-05,2]
[422838434,1779504638000,-2205.941,8.089e-05,2]
[422838429,1779504638000,-500.0,8.051e-05,2]
[422838441,1779504638000,-151.0,8.163e-05,2]
[422838548,1779504640000,-251.73866792,8.219e-05,2]
[422838941,1779504647000,-618.65,8.219e-05,2]
[422838938,1779504647000,-1919.00061103,8.219e-05,2]
[422838939,1779504647000,-500.0,8.219e-05,2]
[422838943,1779504647000,-500.0,8.219e-05,2]
[422838948,1779504647000,-500.0,8.219e-05,2]
[422838945,1779504647000,-500.0,8.219e-05,2]
[422838947,1779504647000,-500.0,8.219e-05,2]
[422838940,1779504647000,-334.65963656,8.219e-05,2]
[422838950,1779504647000,-1084.68975241,8.219e-05,2]
[422838976,1779505766000,-90.01703282,7.262e-05,2]
[422838974,1779505766000,-151.0,7.044e-05,2]
[422838975,1779505766000,-404.91817056,7.071e-05,2]
[422839016,1779505832000,-41.95900534,7.853e-05,2]
[422839030,1779505832000,-500.0,7.854e-05,2]
[422839024,1779505832000,-500.0,7.854e-05,2]
[422839028,1779505832000,-500.0,7.854e-05,2]
[422839014,1779505832000,-161.73153808,7.847e-05,2]
[422839004,1779505832000,-396.81980715,7.374e-05,2]
[422839012,1779505832000,-766.63845589,7.847e-05,2]
[422839006,1779505832000,-151.0,7.486e-05,2]
[422839008,1779505832000,-160.0,7.517e-05,2]
[422839002,1779505832000,-60.98296718,7.262e-05,2]
[422839022,1779505832000,-500.0,7.854e-05,2]
[422839010,1779505832000,-160.738649,7.519e-05,2]
[422839034,1779505832000,-500.0,7.854e-05,2]
[422839039,1779505832000,-603.0,7.854e-05,2]
[422839026,1779505832000,-500.0,7.854e-05,2]
[422839018,1779505832000,-258.04099466,7.853e-05,2]
[422839047,1779505832000,-415.45976449,7.854e-05,2]
[422839049,1779505832000,-500.0,7.854e-05,2]
[422839043,1779505832000,-500.49062999,7.854e-05,2]
[422839041,1779505832000,-500.0,7.854e-05,2]
[422839045,1779505832000,-500.0,7.854e-05,2]
[422839051,1779505832000,-500.0,7.854e-05,2]
[422839038,1779505832000,-500.0,7.854e-05,2]
[422839036,1779505832000,-500.0,7.854e-05,2]
[422839032,1779505832000,-500.0,7.854e-05,2]
[422839020,1779505832000,-238.0,7.853e-05,2]
[422839053,1779505832000,-338.50254304,7.854e-05,2]
[422839101,1779505838000,-160.0,8e-05,2]
[422839103,1779505838000,-500.0,8.043e-05,2]
[422839100,1779505838000,-164.02525372,7.855e-05,2]
[422839112,1779505838000,-160.0,8.077e-05,2]
[422839114,1779505838000,-2204.0,8.089e-05,2]
[422839113,1779505838000,-648.0,8.089e-05,2]
[422839111,1779505838000,-27817.14616352,8.044e-05,2]
[422839092,1779505838000,-161.49745696,7.854e-05,2]
[422839097,1779505838000,-55392.2695741,7.855e-05,2]
[422839096,1779505838000,-4138.10984835,7.855e-05,2]
[422839094,1779505838000,-1136.54756164,7.855e-05,2]
[422839098,1779505838000,-2527.4614281,7.855e-05,2]
[422839095,1779505838000,-7501.00436605,7.855e-05,2]
[422839093,1779505838000,-6164.73404166,7.855e-05,2]
[422839105,1779505838000,-500.0,8.043e-05,2]
[422839099,1779505838000,-2050.7078901,7.855e-05,2]
[422839106,1779505838000,-500.0,8.043e-05,2]
[422839121,1779505838000,-152.0,8.204e-05,7]
[422839109,1779505838000,-500.0,8.043e-05,2]
[422839107,1779505838000,-500.0,8.043e-05,2]
[422839123,1779505838000,-500.0,8.219e-05,2]
[422839120,1779505838000,-161.68140627,8.2e-05,2]
[422839126,1779505838000,-151.0,8.219e-05,2]
[422839127,1779505838000,-151.0,8.219e-05,2]
[422839128,1779505838000,-151.0,8.219e-05,2]
[422839118,1779505838000,-443.0,8.089e-05,2]
[422839122,1779505838000,-500.0,8.219e-05,2]
[422839119,1779505838000,-243.068,8.163e-05,2]
[422839125,1779505838000,-1653.85,8.219e-05,2]
[422839117,1779505838000,-185.0,8.089e-05,2]
[422839115,1779505838000,-1413.0,8.089e-05,2]
[422839116,1779505838000,-377.47,8.089e-05,2]
[422839108,1779505838000,-165.41744427,8.043e-05,2]
[422839110,1779505838000,-500.0,8.043e-05,2]
[422839124,1779505838000,-500.0,8.219e-05,2]
[422839169,1779505839000,-575.79,8.219e-05,2]
[422839167,1779505839000,-552.48,8.219e-05,2]
[422839165,1779505839000,-500.0,8.219e-05,2]
[422839168,1779505839000,-500.0,8.219e-05,2]
[422839164,1779505839000,-531.92,8.219e-05,2]
[422839172,1779505839000,-552.06,8.219e-05,2]
[422839173,1779505839000,-500.0,8.219e-05,2]
[422839162,1779505839000,-500.0,8.219e-05,2]
[422839163,1779505839000,-655.49,8.219e-05,2]
[422839159,1779505839000,-500.0,8.219e-05,2]
[422839170,1779505839000,-500.0,8.219e-05,2]
[422839166,1779505839000,-952.41,8.219e-05,2]
[422839179,1779505839000,-500.0,8.219e-05,2]
[422839185,1779505839000,-883.01,8.219e-05,2]
[422839181,1779505839000,-560.58,8.219e-05,2]
[422839174,1779505839000,-1180.17,8.219e-05,2]
[422839177,1779505839000,-500.0,8.219e-05,2]
[422839186,1779505839000,-500.0,8.219e-05,2]
[422839176,1779505839000,-500.0,8.219e-05,2]
[422839184,1779505839000,-500.0,8.219e-05,2]
[422839180,1779505839000,-500.0,8.219e-05,2]
[422839158,1779505839000,-500.0,8.219e-05,2]
[422839178,1779505839000,-500.0,8.219e-05,2]
[422839183,1779505839000,-500.0,8.219e-05,2]
[422839175,1779505839000,-500.0,8.219e-05,2]
[422839188,1779505839000,-171.515961,8.219e-05,2]
[422839200,1779505839000,-500.0,8.219e-05,2]
[422839182,1779505839000,-737.08,8.219e-05,2]
[422839160,1779505839000,-500.0,8.219e-05,2]
[422839149,1779505839000,-500.0,8.219e-05,2]
[422839157,1779505839000,-500.0,8.219e-05,2]
[422839139,1779505839000,-500.0,8.219e-05,2]
[422839129,1779505839000,-151.0,8.219e-05,2]
[422839140,1779505839000,-582.61,8.219e-05,2]
[422839134,1779505839000,-151.0,8.219e-05,2]
[422839135,1779505839000,-151.0,8.219e-05,2]
[422839136,1779505839000,-151.0,8.219e-05,2]
[422839130,1779505839000,-151.0,8.219e-05,2]
[422839132,1779505839000,-500.0,8.219e-05,2]
[422839138,1779505839000,-151.0,8.219e-05,2]
[422839131,1779505839000,-151.0,8.219e-05,2]
[422839137,1779505839000,-151.0,8.219e-05,2]
[422839133,1779505839000,-151.0,8.219e-05,2]
[422839142,1779505839000,-983.04,8.219e-05,2]
[422839161,1779505839000,-500.0,8.219e-05,2]
[422839152,1779505839000,-1129.35,8.219e-05,2]
[422839143,1779505839000,-500.0,8.219e-05,2]
[422839153,1779505839000,-500.0,8.219e-05,2]
[422839145,1779505839000,-562.04,8.219e-05,2]
[422839154,1779505839000,-500.0,8.219e-05,2]
[422839144,1779505839000,-500.0,8.219e-05,2]
[422839146,1779505839000,-500.0,8.219e-05,2]
[422839198,1779505839000,-1495.44,8.219e-05,2]
[422839147,1779505839000,-500.0,8.219e-05,2]
[422839151,1779505839000,-500.0,8.219e-05,2]
[422839150,1779505839000,-500.0,8.219e-05,2]
[422839148,1779505839000,-500.0,8.219e-05,2]
[422839156,1779505839000,-500.0,8.219e-05,2]
[422839155,1779505839000,-1041.34,8.219e-05,2]
[422839141,1779505839000,-1789.17,8.219e-05,2]
[422839187,1779505839000,-500.0,8.219e-05,2]
[422839171,1779505839000,-500.0,8.219e-05,2]
[422839199,1779505839000,-791.03,8.219e-05,2]
[422839221,1779505839000,-500.0,8.219e-05,2]
[422839219,1779505839000,-500.0,8.219e-05,2]
[422839227,1779505839000,-500.0,8.219e-05,2]
[422839232,1779505839000,-1154.95,8.219e-05,2]
[422839234,1779505839000,-500.0,8.219e-05,2]
[422839235,1779505839000,-1305.04,8.219e-05,2]
[422839231,1779505839000,-500.0,8.219e-05,2]
[422839237,1779505839000,-588.45,8.219e-05,2]
[422839233,1779505839000,-500.0,8.219e-05,2]
[422839230,1779505839000,-3818.75,8.219e-05,2]
[422839236,1779505839000,-500.0,8.219e-05,2]
[422839229,1779505839000,-500.0,8.219e-05,2]
[422839228,1779505839000,-524.37,8.219e-05,2]
[422839238,1779505839000,-925.55,8.219e-05,2]
[422839239,1779505839000,-960.01,8.219e-05,2]
[422839241,1779505839000,-500.0,8.219e-05,2]
[422839251,1779505839000,-698.86,8.219e-05,2]
[422839250,1779505839000,-500.0,8.219e-05,2]
[422839244,1779505839000,-1971.56,8.219e-05,2]
[422839246,1779505839000,-2187.37,8.219e-05,2]
[422839248,1779505839000,-500.0,8.219e-05,2]
[422839252,1779505839000,-868.22,8.219e-05,2]
[422839240,1779505839000,-373.73698053,8.219e-05,2]
[422839242,1779505839000,-614.38,8.219e-05,2]
[422839243,1779505839000,-1305.39,8.219e-05,2]
[422839253,1779505839000,-570.0,8.219e-05,2]
[422839249,1779505839000,-500.0,8.219e-05,2]
[422839189,1779505839000,-500.0,8.219e-05,2]
[422839245,1779505839000,-500.0,8.219e-05,2]
[422839217,1779505839000,-500.0,8.219e-05,2]
[422839216,1779505839000,-500.0,8.219e-05,2]
[422839247,1779505839000,-500.0,8.219e-05,2]
[422839224,1779505839000,-500.0,8.219e-05,2]
[422839196,1779505839000,-500.0,8.219e-05,2]
[422839194,1779505839000,-500.0,8.219e-05,2]
[422839195,1779505839000,-500.0,8.219e-05,2]
[422839191,1779505839000,-500.0,8.219e-05,2]
[422839190,1779505839000,-1385.09,8.219e-05,2]
[422839197,1779505839000,-251.11697497,8.219e-05,2]
[422839193,1779505839000,-500.0,8.219e-05,2]
[422839192,1779505839000,-513.56,8.219e-05,2]
[422839201,1779505839000,-500.0,8.219e-05,2]
[422839218,1779505839000,-500.0,8.219e-05,2]
[422839204,1779505839000,-2248.94,8.219e-05,2]
[422839205,1779505839000,-764.49,8.219e-05,2]
[422839212,1779505839000,-500.0,8.219e-05,2]
[422839207,1779505839000,-500.0,8.219e-05,2]
[422839203,1779505839000,-500.0,8.219e-05,2]
[422839213,1779505839000,-654.95,8.219e-05,2]
[422839225,1779505839000,-1630.52,8.219e-05,2]
[422839208,1779505839000,-2059.39,8.219e-05,2]
[422839220,1779505839000,-500.0,8.219e-05,2]
[422839215,1779505839000,-513.58,8.219e-05,2]
[422839214,1779505839000,-500.0,8.219e-05,2]
[422839223,1779505839000,-4045.59,8.219e-05,2]
[422839222,1779505839000,-1244.62,8.219e-05,2]
[422839211,1779505839000,-500.0,8.219e-05,2]
[422839202,1779505839000,-1280.69,8.219e-05,2]
[422839206,1779505839000,-500.0,8.219e-05,2]
[422839209,1779505839000,-934.73,8.219e-05,2]
[422839226,1779505839000,-500.0,8.219e-05,2]
[422839210,1779505839000,-500.0,8.219e-05,2]
[422839295,1779505840000,-500.0,8.219e-05,2]
[422839293,1779505840000,-3861.15,8.219e-05,2]
[422839294,1779505840000,-500.0,8.219e-05,2]
[422839286,1779505840000,-500.0,8.219e-05,2]
[422839288,1779505840000,-500.0,8.219e-05,2]
[422839285,1779505840000,-592.88,8.219e-05,2]
[422839292,1779505840000,-500.0,8.219e-05,2]
[422839289,1779505840000,-500.0,8.219e-05,2]
[422839290,1779505840000,-500.0,8.219e-05,2]
[422839282,1779505840000,-500.0,8.219e-05,2]
[422839287,1779505840000,-637.94,8.219e-05,2]
[422839296,1779505840000,-500.0,8.219e-05,2]
[422839313,1779505840000,-2752.66,8.219e-05,2]
[422839299,1779505840000,-500.0,8.219e-05,2]
[422839298,1779505840000,-236.15786682,8.219e-05,2]
[422839303,1779505840000,-985.2,8.219e-05,2]
[422839305,1779505840000,-560.72834009,8.219e-05,2]
[422839304,1779505840000,-500.0,8.219e-05,2]
[422839307,1779505840000,-500.0,8.219e-05,2]
[422839302,1779505840000,-500.0,8.219e-05,2]
[422839309,1779505840000,-6679.09,8.219e-05,2]
[422839312,1779505840000,-500.0,8.219e-05,2]
[422839310,1779505840000,-1136.65,8.219e-05,2]
[422839306,1779505840000,-2013.64,8.219e-05,2]
[422839311,1779505840000,-500.0,8.219e-05,2]
[422839284,1779505840000,-500.0,8.219e-05,2]
[422839318,1779505840000,-500.0,8.219e-05,2]
[422839297,1779505840000,-500.0,8.219e-05,2]
[422839283,1779505840000,-500.0,8.219e-05,2]
[422839269,1779505840000,-500.0,8.219e-05,2]
[422839281,1779505840000,-500.0,8.219e-05,2]
[422839317,1779505840000,-775.25,8.219e-05,2]
[422839255,1779505840000,-500.0,8.219e-05,2]
[422839256,1779505840000,-843.35,8.219e-05,2]
[422839254,1779505840000,-775.72,8.219e-05,2]
[422839264,1779505840000,-1041.29,8.219e-05,2]
[422839259,1779505840000,-500.0,8.219e-05,2]
[422839258,1779505840000,-521.87,8.219e-05,2]
[422839263,1779505840000,-500.0,8.219e-05,2]
[422839266,1779505840000,-1044.63,8.219e-05,2]
[422839267,1779505840000,-1610.49,8.219e-05,2]
[422839262,1779505840000,-500.0,8.219e-05,2]
[422839265,1779505840000,-1054.57,8.219e-05,2]
[422839257,1779505840000,-577.0,8.219e-05,2]
[422839260,1779505840000,-500.0,8.219e-05,2]
[422839261,1779505840000,-500.0,8.219e-05,2]
[422839279,1779505840000,-500.0,8.219e-05,2]
[422839275,1779505840000,-681.71,8.219e-05,2]
[422839272,1779505840000,-718.14,8.219e-05,2]
[422839274,1779505840000,-500.0,8.219e-05,2]
[422839276,1779505840000,-500.0,8.219e-05,2]
[422839278,1779505840000,-500.0,8.219e-05,2]
[422839277,1779505840000,-500.0,8.219e-05,2]
[422839270,1779505840000,-2333.86,8.219e-05,2]
[422839268,1779505840000,-1395.78,8.219e-05,2]
[422839280,1779505840000,-500.0,8.219e-05,2]
[422839273,1779505840000,-745.68,8.219e-05,2]
[422839271,1779505840000,-726.16,8.219e-05,2]
[422839291,1779505840000,-9607.54,8.219e-05,2]
[422839322,1779505840000,-1837.84,8.219e-05,2]
[422839366,1779505840000,-500.0,8.219e-05,2]
[422839320,1779505840000,-501.60488927,8.219e-05,2]
[422839356,1779505840000,-3678.68,8.219e-05,2]
[422839354,1779505840000,-500.0,8.219e-05,2]
[422839358,1779505840000,-3811.29,8.219e-05,2]
[422839360,1779505840000,-500.0,8.219e-05,2]
[422839362,1779505840000,-1853.12,8.219e-05,2]
[422839364,1779505840000,-500.0,8.219e-05,2]
[422839368,1779505840000,-500.0,8.219e-05,2]
[422839370,1779505840000,-500.0,8.219e-05,2]
[422839378,1779505840000,-625.1,8.219e-05,2]
[422839383,1779505840000,-500.0,8.219e-05,2]
[422839374,1779505840000,-1564.41,8.219e-05,2]
[422839376,1779505840000,-500.0,8.219e-05,2]
[422839381,1779505840000,-11921.72,8.219e-05,2]
[422839372,1779505840000,-556.47,8.219e-05,2]
[422839385,1779505840000,-500.0,8.219e-05,2]
[422839390,1779505840000,-500.0,8.219e-05,2]
[422839387,1779505840000,-412.77257828,8.219e-05,2]
[422839389,1779505840000,-500.0,8.219e-05,2]
[422839392,1779505840000,-1151.79,8.219e-05,2]
[422839394,1779505840000,-500.0,8.219e-05,2]
[422839396,1779505840000,-500.0,8.219e-05,2]
[422839400,1779505840000,-500.0,8.219e-05,2]
[422839403,1779505840000,-802.56,8.219e-05,2]
[422839401,1779505840000,-7730.38,8.219e-05,2]
[422839398,1779505840000,-2695.96,8.219e-05,2]
[422839405,1779505840000,-2292.88,8.219e-05,2]
[422839323,1779505840000,-500.50830567,8.219e-05,2]
[422839352,1779505840000,-500.0,8.219e-05,2]
[422839339,1779505840000,-500.0,8.219e-05,2]
[422839380,1779505840000,-500.0,8.219e-05,2]
[422839347,1779505840000,-500.0,8.219e-05,2]
[422839324,1779505840000,-500.0,8.219e-05,2]
[422839346,1779505840000,-500.0,8.219e-05,2]
[422839325,1779505840000,-500.0,8.219e-05,2]
[422839319,1779505840000,-500.0,8.219e-05,2]
[422839314,1779505840000,-769.85,8.219e-05,2]
[422839315,1779505840000,-500.0,8.219e-05,2]
[422839316,1779505840000,-6828.89,8.219e-05,2]
[422839321,1779505840000,-595.23,8.219e-05,2]
[422839326,1779505840000,-1321.9,8.219e-05,2]
[422839334,1779505840000,-500.0,8.219e-05,2]
[422839333,1779505840000,-1343.15,8.219e-05,2]
[422839327,1779505840000,-500.0,8.219e-05,2]
[422839329,1779505840000,-2258.33,8.219e-05,2]
[422839331,1779505840000,-500.0,8.219e-05,2]
[422839335,1779505840000,-500.0,8.219e-05,2]
[422839345,1779505840000,-2376.77,8.219e-05,2]
[422839344,1779505840000,-4898.05,8.219e-05,2]
[422839332,1779505840000,-500.0,8.219e-05,2]
[422839343,1779505840000,-500.0,8.219e-05,2]
[422839350,1779505840000,-1000.0,8.219e-05,2]
[422839349,1779505840000,-500.0,8.219e-05,2]
[422839342,1779505840000,-500.0,8.219e-05,2]
[422839341,1779505840000,-500.0,8.219e-05,2]
[422839336,1779505840000,-500.0,8.219e-05,2]
[422839330,1779505840000,-733.92,8.219e-05,2]
[422839337,1779505840000,-735.1,8.219e-05,2]
[422839328,1779505840000,-500.37202211,8.219e-05,2]